bitfinex/quotes_SOLUSD_20251201
["timestamp","ask_amount","ask_price","bid_price","bid_amount"]
[1764611695758,0.1,124.98,124.94,3.52347415]
[1764611697145,0.1,124.98,124.95,8.00320128]
[1764611697454,0.1,124.98,124.95,11.52667543]
[1764611698442,0.1,124.98,124.97,3.52347415]
[1764611700436,0.1,124.98,124.97,20.4775011]
[1764611700632,0.1,124.98,124.97,24.00097525]
[1764611700832,0.1,124.98,124.97,20.4775011]
[1764611701028,0.1,124.98,124.96,8.00228808]
[1764611701256,0.1,124.98,124.96,11.52576223]
[1764611701558,0.1,124.98,124.97,3.52347415]
[1764611702353,0.1,124.98,124.97,11.52539461]
[1764611702553,3.62347415,124.98,124.94,20.00888604]
[1764611702744,3.62347415,124.98,124.94,8.00384184]
[1764611703255,0.1,124.98,124.94,11.52731599]
[1764611703554,3.62347415,124.98,124.94,8.00384184]
[1764611703858,0.1,124.98,124.94,11.52731599]
[1764611704546,8.1012802,124.98,124.94,11.52731599]
[1764611705455,8.1012802,124.98,124.93,11.52778155]
[1764611705456,11.62475435,124.98,124.93,11.52778155]
[1764611705759,3.52347415,124.94,124.91,8.00576415]
[1764611705944,3.52347415,124.94,124.89,8.86]
[1764611706145,3.52347415,124.94,124.89,12.38347415]
[1764611706436,16.308864,124.95,124.89,12.38347415]
[1764611706641,11.52766549,124.94,124.9,8.00640512]
[1764611707150,12.38347415,124.93,124.87,3.52347415]
[1764611707454,3.52347415,124.91,124.87,8.00832866]
[1764611708235,91.308864,124.92,124.87,8.00832866]
[1764611708458,16.308864,124.89,124.87,8.00832866]
[1764611708658,16.308864,124.89,124.86,28.03067689]
[1764611709054,16.308864,124.89,124.86,31.55415104]
[1764611709253,8.00535512,124.92,124.88,3.52347415]
[1764611709459,25.168864,124.93,124.88,3.52347415]
[1764611709976,25.168864,124.93,124.89,3.52347415]
[1764611710266,16.308864,124.93,124.89,3.52347415]
[1764611710443,24.31354542,124.93,124.89,3.52347415]
[1764611710641,27.83701957,124.93,124.88,11.53114595]
[1764611710870,27.83701957,124.93,124.88,20.41114595]
[1764611711059,24.31354542,124.93,124.88,20.41114595]
[1764611711768,27.83701957,124.93,124.88,11.53114595]
[1764611711954,27.83701957,124.93,124.88,20.41114595]
[1764611712465,27.83701957,124.93,124.88,40.43036439]
[1764611712638,19.83233815,124.93,124.88,40.43036439]
[1764611712836,27.83686732,124.93,124.88,40.43036439]
[1764611713564,3.52347415,124.91,124.85,3.52347415]
[1764611713761,3.52347415,124.91,124.86,3.52347415]
[1764611713964,87.40347415,124.92,124.86,3.52347415]
[1764611714548,95.40920713,124.92,124.87,8.00832866]
[1764611714849,91.88573298,124.92,124.87,8.00832866]
[1764611715054,3.52347415,124.91,124.87,8.00832866]
[1764611715563,20.40920713,124.92,124.87,8.00832866]
[1764611716745,3.52347415,124.91,124.86,8.00897004]
[1764611716964,3.52347415,124.91,124.86,11.53244419]
[1764611717168,3.52347415,124.9,124.86,8.00897004]
[1764611717949,3.52347415,124.9,124.86,28.03139515]
[1764611718345,3.52347415,124.91,124.86,31.5548693]
[1764611718568,3.52347415,124.9,124.86,28.03139515]
[1764611719274,3.52347415,124.89,124.86,8.00897004]
[1764611719574,3.52347415,124.87,124.82,12.40347415]
[1764611719748,3.52347415,124.87,124.83,8.01088585]
[1764611720751,11.53198899,124.87,124.83,8.01088585]
[1764611721680,8.88,124.89,124.84,3.52347415]
[1764611721968,8.88,124.89,124.85,3.52347415]
[1764611722543,24.31539569,124.9,124.86,3.52347415]
[1764611722866,24.31539569,124.9,124.86,11.53193558]
[1764611724651,27.83886984,124.9,124.86,8.00846143]
[1764611724950,3.52347415,124.89,124.86,8.00846143]
[1764611725152,27.83886984,124.9,124.86,8.00846143]
[1764611725872,3.52347415,124.89,124.84,8.01007066]
[1764611726077,3.52347415,124.88,124.84,8.01007066]
[1764611726549,3.52347415,124.87,124.83,8.01073247]
[1764611726757,11.53220717,124.87,124.83,8.01073247]
[1764611727251,8.00873302,124.87,124.83,11.53420662]
[1764611727761,24.31759702,124.87,124.83,11.53420662]
[1764611727962,27.84107117,124.87,124.83,11.53420662]
[1764611728168,24.31759702,124.87,124.83,11.53420662]
[1764611729894,24.31759702,124.87,124.84,3.52347415]
[1764611730371,24.31759702,124.87,124.84,5.51365132]
[1764611730867,16.308864,124.87,124.83,8.01073247]
[1764611731068,24.31723999,124.87,124.84,5.51365132]
[1764611731692,24.31723999,124.87,124.83,5.51365132]
[1764611731991,24.31723999,124.87,124.83,13.52436023]
[1764611732497,16.308864,124.87,124.83,13.52436023]
[1764611732975,21.82251532,124.87,124.83,13.52436023]
[1764611733492,16.308864,124.87,124.83,13.52436023]
[1764611734096,16.308864,124.87,124.83,8.01070891]
[1764611734293,24.31726122,124.87,124.83,13.52436023]
[1764611734488,29.83091254,124.87,124.83,8.01070891]
[1764611734671,24.31726122,124.87,124.83,13.52436023]
[1764611734992,16.308864,124.87,124.85,5.51365132]
[1764611735803,24.31722834,124.87,124.84,13.52387925]
[1764611736283,5.51365132,124.86,124.81,8.21199803]
[1764611736494,33.19722834,124.87,124.82,5.51365132]
[1764611736671,38.71087966,124.87,124.83,5.51365132]
[1764611736873,58.73170131,124.87,124.83,5.51365132]
[1764611737076,33.19722834,124.87,124.83,13.52451542]
[1764611737566,25.188864,124.87,124.84,5.51365132]
[1764611737791,25.188864,124.87,124.85,5.51365132]
[1764611738091,16.308864,124.87,124.85,5.51365132]
[1764611738496,16.308864,124.87,124.84,5.51365132]
[1764611738989,16.308864,124.87,124.84,13.52331137]
[1764611739689,24.31724359,124.87,124.84,13.52331137]
[1764611739890,29.83089491,124.87,124.83,22.40431172]
[1764611740599,24.31724359,124.87,124.83,22.40431172]
[1764611741892,29.83089491,124.87,124.83,22.40431172]
[1764611742093,29.83089491,124.87,124.83,13.52431172]
[1764611743199,24.31724359,124.87,124.84,5.51365132]
[1764611743497,16.308864,124.87,124.84,5.51365132]
[1764611743700,16.308864,124.87,124.85,5.51365132]
[1764611743999,16.308864,124.87,124.83,33.55154876]
[1764611744598,16.308864,124.87,124.84,5.51365132]
[1764611744801,24.3173331,124.87,124.83,28.03789744]
[1764611745096,24.3173331,124.87,124.83,33.55154876]
[1764611745976,29.83098442,124.87,124.83,33.55154876]
[1764611746376,24.3173331,124.87,124.83,33.55154876]
[1764611747898,24.3173331,124.87,124.83,28.03789744]
[1764611748093,24.3173331,124.87,124.83,33.55154876]
[1764611750281,24.3173331,124.87,124.83,13.52431172]
[1764611750477,80.51365132,124.85,124.81,0.2]
[1764611750780,5.51365132,124.83,124.81,0.2]
[1764611750981,30.70251532,124.84,124.81,0.2]
[1764611751683,25.188864,124.84,124.81,0.2]
[1764611751883,30.70251532,124.84,124.81,0.2]
[1764611752203,38.71340269,124.84,124.81,0.2]
[1764611752412,25.188864,124.84,124.81,13.72569927]
[1764611752784,25.188864,124.84,124.81,5.71365132]
[1764611752988,33.19924983,124.84,124.81,0.2]
[1764611754219,5.51365132,124.83,124.81,0.2]
[1764611754511,89.53581289,124.82,124.81,0.2]
[1764611756498,97.5473495,124.82,124.81,0.2]
[1764611757282,106.35729442,124.82,124.81,1e-08]
[1764611757482,181.35729442,124.82,124.81,1e-08]
[1764611758015,16.308864,124.76,124.75,0.2]
[1764611758178,30.70251532,124.76,124.75,0.2]
[1764611758506,38.71790486,124.76,124.75,0.2]
[1764611759404,16.308864,124.76,124.75,0.2]
[1764611760796,16.89284179,124.8,124.75,13.72968338]
[1764611760999,8.0121814,124.81,124.78,5.51365132]
[1764611761389,16.89154795,124.82,124.78,5.51365132]
[1764611761583,8.0108996,124.83,124.81,5.51365132]
[1764611761800,24.3197636,124.83,124.8,5.51365132]
[1764611762109,8.0108996,124.83,124.8,5.51365132]
[1764611762610,28.0360131,124.84,124.8,15.36750986]
[1764611762814,16.308864,124.83,124.8,15.36750986]
[1764611763282,28.0360131,124.84,124.79,8.01313422]
[1764611763488,16.308864,124.82,124.81,15.36750986]
[1764611764303,16.308864,124.82,124.8,15.36750986]
[1764611765083,16.308864,124.82,124.81,15.36750986]
[1764611766729,16.308864,124.82,124.79,20.03365654]
[1764611767034,20.02195097,124.87,124.81,15.36750986]
[1764611767194,20.02195097,124.87,124.84,15.36750986]
[1764611767390,16.308864,124.85,124.84,15.36750986]
[1764611768121,8.88,124.88,124.84,15.36750986]
[1764611768307,16.88772668,124.88,124.86,15.36750986]
[1764611768716,33.19659068,124.88,124.86,15.36750986]
[1764611769199,8.88,124.88,124.86,15.36750986]
[1764611769407,16.88702688,124.9,124.87,15.36750986]
[1764611769608,16.308864,124.88,124.86,15.36750986]
[1764611770009,16.308864,124.88,124.83,8.95210649]
[1764611770207,16.308864,124.88,124.85,23.37681425]
[1764611770709,24.31674348,124.88,124.84,8.01001424]
[1764611771013,15.36750986,124.87,124.82,23.37904647]
[1764611771223,108.19674348,124.88,124.82,23.37904647]
[1764611771224,123.56425334,124.88,124.83,15.36750986]
[1764611771415,123.56425334,124.88,124.84,15.36750986]
[1764611771728,25.188864,124.88,124.84,15.36750986]
[1764611772015,16.88600666,124.91,124.87,15.36750986]
[1764611772235,16.308864,124.9,124.87,23.37552168]
[1764611772609,8.88,124.91,124.88,15.36750986]
[1764611772934,23.37240428,124.93,124.89,15.36750986]
[1764611773098,8.00393633,124.94,124.9,15.36750986]
[1764611773300,16.308864,124.91,124.9,15.36750986]
[1764611773530,32.25144619,124.94,124.9,15.36750986]
[1764611773914,16.308864,124.91,124.9,15.36750986]
[1764611774434,16.308864,124.93,124.9,23.37391498]
[1764611774732,8.88,124.94,124.91,15.36750986]
[1764611775224,16.308864,124.92,124.91,15.36750986]
[1764611775719,16.308864,124.92,124.89,15.36750986]
[1764611776333,16.308864,124.92,124.89,23.37394472]
[1764611777122,16.308864,124.92,124.89,8.00643486]
[1764611777343,39.68157304,124.92,124.85,20.02294403]
[1764611777526,123.56157304,124.92,124.88,15.36750986]
[1764611778223,123.56157304,124.92,124.88,23.37509135]
[1764611779033,33.19406318,124.92,124.88,23.37509135]
[1764611781221,48.56157304,124.92,124.87,15.36750986]
[1764611782314,48.56157304,124.92,124.88,8.00768737]
[1764611783041,31.67637386,124.89,124.85,23.37705093]
[1764611783208,8.88,124.88,124.84,23.37766494]
[1764611783526,24.24750986,124.88,124.83,23.37839718]
[1764611783726,15.36750986,124.85,124.8,15.36750986]
[1764611783914,8.88,124.84,124.8,15.36750986]
[1764611784428,16.308864,124.81,124.8,5.51718858]
[1764611784806,16.308864,124.81,124.79,13.53065119]
[1764611786006,24.31979947,124.83,124.8,5.51718858]
[1764611786519,24.31979947,124.83,124.79,23.38159466]
[1764611788130,39.68793152,124.83,124.78,20.03501216]
[1764611788328,39.68793152,124.83,124.78,35.40314421]
[1764611788524,59.71516856,124.83,124.77,8.01474713]
[1764611788709,24.24813205,124.82,124.77,23.38287918]
[1764611789120,16.308864,124.79,124.76,23.38347175]
[1764611789327,31.67699605,124.79,124.75,8.21598345]
[1764611789831,16.308864,124.79,124.76,15.36813205]
[1764611790127,16.308864,124.79,124.77,15.36813205]
[1764611790428,16.308864,124.79,124.78,8.58465654]
[1764611790629,16.308864,124.79,124.77,8.58465654]
[1764611791209,16.89182733,124.82,124.78,8.58465654]
[1764611791409,16.308864,124.81,124.78,8.58465654]
[1764611792733,24.32143333,124.81,124.77,8.58465654]
[1764611792932,32.90608987,124.81,124.76,16.60004608]
[1764611794812,24.32143333,124.81,124.77,8.58465654]
[1764611795238,24.32143333,124.81,124.77,16.59935211]
[1764611796232,16.308864,124.77,124.75,0.2]
[1764611797247,16.89538954,124.76,124.75,0.2]
[1764611797535,33.20425354,124.76,124.75,0.2]
[1764611799560,41.78891008,124.76,124.75,0.2]
[1764611800212,116.78891008,124.76,124.75,0.2]
[1764611801534,100.48004608,124.76,124.75,0.2]
[1764611802241,91.89538954,124.76,124.75,0.2]
[1764611802742,100.48004608,124.76,124.75,0.2]
[1764611803330,91.89538954,124.76,124.75,0.2]
[1764611803533,16.89538954,124.76,124.75,0.2]
[1764611803719,33.20425354,124.76,124.75,0.2]
[1764611806446,41.78891008,124.76,124.75,0.2]
[1764611806944,33.20425354,124.76,124.75,0.2]
[1764611807244,41.78891008,124.76,124.75,0.2]
[1764611807923,33.20425354,124.76,124.75,0.2]
[1764611808248,41.78891008,124.76,124.75,0.2]
[1764611808424,36.73984416,124.76,124.75,0.2]
[1764611809026,20.57314173,124.76,124.75,0.2]
[1764611810246,91.308864,124.74,124.73,0.2]
[1764611810445,191.21215173,124.74,124.72,0.2]
[1764611810641,3.67775219,124.73,124.72,0.2]
[1764611811032,11.69506959,124.73,124.72,0.2]
[1764611812827,24.3261814,124.73,124.72,0.2]
[1764611813148,16.89538954,124.76,124.72,11.75346836]
[1764611813354,8.01217851,124.81,124.75,3.53559062]
[1764611813657,36.73663313,124.81,124.76,3.53559062]
[1764611813949,36.92262478,124.81,124.76,3.53559062]
[1764611814159,40.4582154,124.81,124.76,3.53559062]
[1764611814453,45.50904307,124.81,124.76,8.58641829]
[1764611814949,45.50904307,124.81,124.72,77.30468595]
[1764611815154,16.5998809,124.79,124.74,16.60301722]
[1764611815332,25.4798809,124.79,124.74,16.60301722]
[1764611815539,45.51353744,124.79,124.74,16.60301722]
[1764611816239,45.51353744,124.79,124.74,8.58641829]
[1764611816442,25.4798809,124.79,124.74,8.58641829]
[1764611816628,33.20232661,124.79,124.74,8.58641829]
[1764611817365,41.7887449,124.79,124.74,16.60283662]
[1764611817852,33.20232661,124.79,124.74,16.60283662]
[1764611818562,41.7887449,124.79,124.74,16.60283662]
[1764611818766,41.7887449,124.79,124.74,8.58641829]
[1764611819061,24.89528229,124.76,124.72,0.2]
[1764611819258,33.77528229,124.76,124.72,0.2]
[1764611820049,8.58641829,124.75,124.72,0.2]
[1764611820361,33.77528229,124.76,124.72,0.2]
[1764611820537,8.01603206,124.75,124.72,0.2]
[1764611821350,16.308864,124.73,124.72,0.2]
[1764611821660,25.188864,124.73,124.72,0.2]
[1764611822655,8.88,124.75,124.72,8.21788983]
[1764611822846,16.308864,124.75,124.72,16.80430812]
[1764611823160,16.308864,124.75,124.73,8.58641829]
[1764611823479,16.308864,124.75,124.72,8.21788983]
[1764611823680,16.308864,124.75,124.72,16.80430812]
[1764611823963,16.308864,124.75,124.73,8.58641829]
[1764611824341,16.308864,124.75,124.72,16.80430812]
[1764611824663,41.7914753,124.75,124.72,0.2]
[1764611827753,16.308864,124.73,124.72,0.2]
[1764611828765,16.308864,124.73,124.72,8.21796023]
[1764611830689,16.308864,124.73,124.72,0.2]
[1764611833277,16.308864,124.73,124.72,16.70837852]
[1764611833448,75.0,124.79,124.72,16.70837852]
[1764611833649,17.46641829,124.78,124.73,8.58641829]
[1764611833851,16.308864,124.75,124.72,8.12196023]
[1764611834553,17.46641829,124.74,124.72,0.104]
[1764611835074,8.0173174,124.73,124.72,0.104]
[1764611835474,16.60373569,124.73,124.72,0.104]
[1764611836166,8.58641829,124.73,124.72,0.104]
[1764611836352,3.53721917,124.73,124.72,0.104]
[1764611837389,8.0173174,124.73,124.72,0.104]
[1764611837585,11.55453657,124.73,124.72,0.104]
[1764611838372,16.89715631,124.74,124.72,0.104]
[1764611838578,3.53721917,124.73,124.72,0.104]
[1764611838952,94.84608317,124.73,124.72,0.104]
[1764611839276,102.86340057,124.73,124.72,0.104]
[1764611841446,99.3261814,124.73,124.72,0.104]
[1764611841647,102.86340057,124.73,124.72,0.104]
[1764611846380,170.50664306,124.73,124.72,0.104]
[1764611851678,170.50664306,124.73,124.71,0.2]
[1764611851679,8.95210649,124.72,124.71,0.2]
[1764611851991,8.95210649,124.72,124.69,1e-08]
[1764611851992,8.95210649,124.7,124.69,1e-08]
[1764611852180,150.0,124.69,124.68,0.2]
[1764611852365,161.06822468,124.69,124.68,0.2]
[1764611852564,91.308864,124.67,124.64,0.2]
[1764611852763,105.86513791,124.67,124.64,0.2]
[1764611854000,113.88631381,124.67,124.64,0.2]
[1764611854371,113.74415224,124.67,124.64,0.2]
[1764611863304,108.2100399,124.67,124.64,0.2]
[1764611863600,113.74415224,124.67,124.64,0.2]
[1764611863970,5.53411234,124.71,124.66,5.73411234]
[1764611864176,80.53411234,124.73,124.68,5.53411234]
[1764611864482,16.308864,124.71,124.68,15.39763166]
[1764611865587,16.308864,124.71,124.68,23.41755422]
[1764611866168,16.308864,124.7,124.68,23.41755422]
[1764611867994,16.308864,124.7,124.66,20.25454837]
[1764611868182,33.20818908,124.7,124.66,28.2757868]
[1764611868383,33.20818908,124.7,124.67,15.39763166]
[1764611869883,33.20818908,124.7,124.67,23.41854383]
[1764611870500,25.188864,124.7,124.67,23.41854383]
[1764611870666,33.20822815,124.7,124.66,23.61921531]
[1764611871275,25.188864,124.7,124.66,23.61921531]
[1764611871475,25.188864,124.7,124.67,15.39763166]
[1764611871993,25.188864,124.7,124.68,23.41816422]
[1764611872989,25.188864,124.7,124.69,15.39763166]
[1764611873305,16.308864,124.7,124.69,15.39763166]
[1764611873992,16.308864,124.7,124.69,23.41752098]
[1764611874188,16.308864,124.7,124.69,8.01988932]
[1764611876095,23.41566902,124.72,124.68,8.02033269]
[1764611876300,8.88,124.71,124.68,8.02033269]
[1764611878406,8.88,124.71,124.68,23.41796435]
[1764611880800,8.88,124.71,124.68,8.02033269]
[1764611880988,24.32624277,124.73,124.69,15.39763166]
[1764611880989,33.20624277,124.73,124.69,15.39763166]
[1764611881301,16.89737877,124.73,124.69,15.39763166]
[1764611881508,33.20624277,124.73,124.68,8.02033269]
[1764611881687,33.20624277,124.73,124.69,15.39763166]
[1764611882001,33.20624277,124.73,124.69,23.41713761]
[1764611882587,8.01446818,124.78,124.72,15.39763166]
[1764611882786,16.89346261,124.79,124.75,15.39763166]
[1764611883094,16.308864,124.76,124.75,15.39763166]
[1764611883297,8.88,124.79,124.75,15.39763166]
[1764611883480,8.88,124.79,124.76,15.39763166]
[1764611883801,23.40852647,124.83,124.78,8.01366079]
[1764611883998,8.88,124.82,124.78,23.41129245]
[1764611884193,16.308864,124.81,124.78,23.41129245]
[1764611884395,16.308864,124.81,124.78,13.53229745]
[1764611885185,14.39863666,124.8,124.74,8.01667468]
[1764611885384,14.39863666,124.8,124.75,25.55799962]
[1764611885599,30.70750066,124.8,124.76,5.51863666]
[1764611886089,25.188864,124.8,124.76,5.51863666]
[1764611886291,25.188864,124.8,124.75,25.55799962]
[1764611886509,30.70750066,124.8,124.75,25.55799962]
[1764611887388,8.01346261,124.79,124.75,13.53439681]
[1764611887605,8.01346261,124.79,124.76,5.51863666]
[1764611887805,8.01346261,124.79,124.75,13.53439681]
[1764611888113,25.188864,124.8,124.75,13.53439681]
[1764611888298,8.88,124.8,124.76,5.51863666]
[1764611888611,8.88,124.8,124.77,5.51863666]
[1764611889007,8.88,124.8,124.76,5.51863666]
[1764611890096,8.88,124.8,124.77,8.01474713]
[1764611890298,8.88,124.8,124.76,5.51863666]
[1764611890497,22.41154416,124.8,124.75,25.55871682]
[1764611890708,22.41154416,124.8,124.76,8.01510458]
[1764611891717,22.41154416,124.8,124.73,8.88]
[1764611891718,5.51863666,124.78,124.73,5.51863666]
[1764611892016,14.39863666,124.78,124.73,33.57924757]
[1764611892218,14.39863666,124.78,124.74,13.53511407]
[1764611892219,8.88,124.78,124.74,13.53511407]
[1764611892517,24.26287694,124.78,124.74,8.01647741]
[1764611892724,15.38287694,124.75,124.7,8.01924619]
[1764611893016,8.88,124.75,124.71,15.38287694]
[1764611893499,24.26287694,124.75,124.7,23.40212313]
[1764611894025,24.26287694,124.75,124.7,35.43099241]
[1764611894507,8.88,124.75,124.71,15.38287694]
[1764611895114,24.26287694,124.75,124.7,35.43099241]
[1764611895627,32.27909061,124.75,124.7,35.43099241]
[1764611895943,107.27909061,124.75,124.69,43.45248957]
[1764611896611,107.27909061,124.75,124.7,15.38287694]
[1764611896821,99.26287694,124.75,124.7,15.38287694]
[1764611898029,31.69174094,124.76,124.71,15.38287694]
[1764611898226,16.308864,124.74,124.73,8.0173174]
[1764611899537,16.308864,124.74,124.72,8.017856]
[1764611900638,16.308864,124.74,124.7,15.38287694]
[1764611901928,16.308864,124.74,124.71,8.01860315]
[1764611902743,40.57174094,124.73,124.69,8.01988932]
[1764611907936,15.38287694,124.72,124.69,8.01988932]
[1764611908232,8.88,124.71,124.67,8.0211759]
[1764611908439,24.26287694,124.71,124.67,8.0211759]
[1764611909024,15.38287694,124.68,124.66,0.2]
[1764611909230,40.57174094,124.67,124.66,0.2]
[1764611909421,25.188864,124.67,124.66,0.2]
[1764611909818,25.188864,124.67,124.66,8.22181934]
[1764611910143,16.308864,124.67,124.66,8.22181934]
[1764611910442,8.88,124.71,124.66,43.65924465]
[1764611910642,8.88,124.71,124.68,15.38287694]
[1764611910843,16.308864,124.7,124.68,15.38287694]
[1764611911139,16.308864,124.7,124.66,28.27636771]
[1764611911314,16.308864,124.7,124.68,15.38287694]
[1764611912320,16.308864,124.7,124.68,8.02053256]
[1764611912520,16.308864,124.7,124.67,8.02086432]
[1764611913043,16.308864,124.7,124.66,11.75944213]
[1764611913236,16.308864,124.7,124.66,31.8139905]
[1764611913623,16.308864,124.7,124.67,3.53786269]
[1764611913824,16.308864,124.7,124.68,3.53786269]
[1764611914418,16.308864,124.71,124.69,11.55775201]
[1764611917040,16.308864,124.71,124.68,3.53786269]
[1764611917248,16.308864,124.71,124.67,20.43869586]
[1764611917743,25.188864,124.71,124.67,31.61163562]
[1764611918746,25.188864,124.71,124.68,3.53786269]
[1764611919330,25.188864,124.71,124.67,31.61163562]
[1764611919937,25.188864,124.71,124.68,3.53786269]
[1764611920147,25.188864,124.71,124.67,28.07377293]
[1764611920444,25.188864,124.71,124.67,31.61163562]
[1764611922344,25.188864,124.71,124.67,28.07377293]
[1764611922550,28.72672669,124.71,124.67,28.07377293]
[1764611922853,3.53786269,124.7,124.67,8.02083317]
[1764611923051,8.88,124.69,124.66,8.22170262]
[1764611925333,12.41786269,124.69,124.66,8.22170262]
[1764611925831,3.53786269,124.68,124.66,0.2]
[1764611926028,87.41786269,124.69,124.66,0.2]
[1764611926232,3.53786269,124.68,124.66,0.2]
[1764611926828,25.188864,124.67,124.66,0.2]
[1764611927031,28.72672669,124.67,124.66,0.2]
[1764611927965,25.188864,124.67,124.66,0.2]
[1764611928264,3.53786269,124.72,124.66,11.75968203]
[1764611928428,8.88,124.72,124.68,3.53786269]
[1764611928628,16.308864,124.71,124.68,3.53786269]
[1764611929035,16.308864,124.71,124.67,3.53786269]
[1764611929242,8.88,124.72,124.67,3.53786269]
[1764611929436,16.308864,124.71,124.67,3.53786269]
[1764611930134,16.308864,124.71,124.68,8.02053256]
[1764611933351,16.308864,124.71,124.68,11.55839525]
[1764611934864,16.308864,124.71,124.69,3.53786269]
[1764611935160,16.308864,124.7,124.68,31.60972665]
[1764611935364,16.308864,124.7,124.68,11.55839525]
[1764611936360,16.308864,124.7,124.68,8.02053256]
[1764611938060,16.308864,124.7,124.68,3.53786269]
[1764611940170,16.308864,124.7,124.69,8.01988932]
[1764611940465,16.308864,124.7,124.69,11.55775201]
[1764611940840,16.308864,124.7,124.69,8.01988932]
[1764611941041,16.308864,124.7,124.69,11.55775201]
[1764611941753,16.308864,124.7,124.67,28.07363018]
[1764611941960,16.308864,124.7,124.67,8.02069042]
[1764611942363,3.53786269,124.68,124.66,0.2]
[1764611942669,16.308864,124.67,124.66,0.2]
[1764611943751,19.84672669,124.67,124.66,0.2]
[1764611943957,16.308864,124.67,124.66,0.2]
[1764611944356,19.84672669,124.67,124.66,0.2]
[1764611944867,16.308864,124.67,124.66,0.2]
[1764611945074,91.308864,124.67,124.66,0.2]
[1764611945676,8.88,124.68,124.66,0.2]
[1764611945868,8.88,124.68,124.66,11.7596035]
[1764611946061,8.88,124.7,124.67,3.53786269]
[1764611946246,25.188864,124.7,124.67,3.53786269]
[1764611946967,8.88,124.7,124.67,11.55856111]
[1764611947369,25.188864,124.7,124.67,11.55856111]
[1764611949758,28.72672669,124.7,124.67,8.02069842]
[1764611950279,28.72672669,124.7,124.66,8.22176985]
[1764611950580,16.308864,124.67,124.66,8.22176985]
[1764611951182,16.308864,124.67,124.66,0.2]
[1764611956576,12.41786269,124.68,124.66,0.2]
[1764611958470,8.88,124.68,124.66,0.2]
[1764611958782,12.41786269,124.68,124.66,0.2]
[1764611959590,8.88,124.68,124.66,0.2]
[1764611964291,16.308864,124.67,124.66,3.73786269]
[1764611965299,16.308864,124.67,124.66,11.75949509]
[1764611967384,16.308864,124.67,124.66,0.2]
[1764611969494,16.308864,124.67,124.66,11.75968203]
[1764611972399,16.308864,124.67,124.66,13.75167632]
[1764611973393,25.188864,124.69,124.66,33.80622469]
[1764611973595,0.14216157,124.72,124.68,5.52985698]
[1764611973892,25.188864,124.7,124.68,5.52985698]
[1764611975201,25.188864,124.7,124.69,5.52985698]
[1764611975605,25.188864,124.7,124.69,8.01988932]
[1764611975898,25.188864,124.7,124.69,13.5497463]
[1764611976099,25.188864,124.7,124.68,13.55010586]
[1764611976900,32.99757576,157.42,124.69,5.52985698]
[1764611976901,150.0,124.75,124.69,5.52985698]
[1764611977097,16.308864,124.72,124.71,5.52985698]
[1764611977293,16.308864,124.72,124.71,13.54846013]
[1764611977679,8.88,124.74,124.69,8.01988932]
[1764611977985,8.88,124.74,124.71,5.52985698]
[1764611978292,25.188864,124.74,124.71,5.52985698]
[1764611978491,8.88,124.74,124.71,5.52985698]
[1764611978886,16.308864,124.72,124.71,5.52985698]
[1764611980405,16.308864,124.72,124.71,13.54846013]
[1764611980907,16.308864,124.72,124.71,8.01860315]
[1764611981584,16.308864,124.72,124.71,5.52985698]
[1764611982003,16.308864,124.72,124.7,5.52985698]
[1764611982396,25.188864,124.72,124.69,5.52985698]
[1764611983001,25.188864,124.72,124.68,8.02053256]
[1764611983206,25.188864,124.72,124.69,5.52985698]
[1764611983503,25.188864,124.72,124.69,13.54929459]
[1764611986894,25.188864,124.72,124.68,5.52985698]
[1764611987902,25.188864,124.72,124.69,13.54929789]
[1764611989919,30.71872098,124.72,124.68,5.52985698]
[1764611991029,5.52985698,124.71,124.66,0.2]
[1764611991190,21.83872098,124.67,124.66,0.2]
[1764611991390,30.71872098,124.67,124.66,0.2]
[1764611991793,25.188864,124.67,124.66,0.2]
[1764611991992,25.188864,124.67,124.66,8.22181934]
[1764611993315,25.188864,124.67,124.66,0.2]
[1764611994917,25.188864,124.67,124.66,8.22181934]
[1764611999315,25.188864,124.67,124.66,13.75167632]
[1764611999907,8.88,124.69,124.66,33.80622469]
[1764612000109,16.308864,124.68,124.66,28.27636771]
[1764612000307,16.308864,124.68,124.66,33.80622469]
[1764612000814,16.308864,124.68,124.67,5.52985698]
[1764612001015,16.308864,124.7,124.67,5.52985698]
[1764612001195,75.0,124.75,124.66,68.52762602]
[1764612001398,14.40985698,124.74,124.7,5.52985698]